Cogmind - Beta 17.1 @@@ ROGUE MODE // 2026.08.17 @ 16:26:56 Player: Cogchaaaan Result: Destroyed by Y-54 Guardian with Gatling Laser Performance ------------- Evolutions (3) 1500 Regions Visited (7) 1400 Robots Destroyed (139) 695 Value Destroyed (4593) 4593 Prototype IDs (1) 20 Alien Tech Used (0) 0 Bonus (11304) 11304 TOTAL SCORE: 19512 Bonus ------- High Alert Combat Kills 404 Prayed to X0-1V1 5000 Major X0-1V1 Interference 4500 Entered Garrisons 400 Used RIF Installer 1000 Cogmind --------- Core Integrity 0/440 Matter 130/300 Energy 1690/1690 System Corruption 19% Temperature Cool (6) Movement Rolling (115) Ox1 Location -7/Garrison Parts ------- > --- POWER (2) -------- Reinforced Deuterium Engine > --- PROPULSION (4) --- Armored Huge Wheel > --- UTILITY (4) ------ Advanced Heat Sink High-capacity Storage Unit Core Analyzer > --- WEAPON (4) ------- Gauss Rifle > --- INVENTORY (20) --- Structural Scanner Enhanced Optical Array High-powered Tractor Beam Peak State ------------ > --- POWER ------------ Reinforced Deuterium Engine Micro Nuclear Core > --- PROPULSION ------- Light Treads Light Treads Light Treads Light Treads > --- UTILITY ---------- Improved Cooling System High-capacity Storage Unit Hardened Medium Armor Plating X0-1V1's Piety Tracker > --- WEAPON ----------- Particle Gun Particle Gun Heavy Assault Rifle Powered Hammer > --- INVENTORY -------- Nuclear Core Reinforced Deuterium Engine Light Treads Light Treads Light Treads Light Treads Light Treads Improved Treads Armored Huge Wheel Advanced Heat Sink Structural Scanner Core Analyzer Reactive Plating Reactive Plating Hardlight Generator High-powered Tractor Beam Heavy Assault Rifle Minigun Missile Launcher [Rating: 48] Favorites ----------- Power Improved Ion Engine Engine Improved Ion Engine Power Core Nuclear Core Propulsion Light Treads Treads Light Treads Wheel Armored Huge Wheel Utility High-capacity Storage Unit Device X0-1V1's Piety Tracker Storage High-capacity Storage Unit Processor Core Analyzer Protection Reactive Plating Weapon Heavy Assault Rifle Energy Gun Particle Gun Ballistic Gun Heavy Assault Rifle Ballistic Cannon Heavy Assault Cannon Launcher Missile Launcher Impact Weapon Powered Hammer Slashing Weapon Axe Build | -11 -10 -9 -8 -8 -8 -7 -7 ------- Run | Yrd Mat Mat Mat Gar Mat Fac Gar Slots Evolved 6 | . . 2 2 . . 2 . Power . | . . . . . . . . Propulsion 3 | . . 1 1 . . 1 . Utility 2 | . . . 1 . . 1 . Weapon 1 | . . 1 . . . . . Parts Attached 93 | 6 9 12 1 18 23 4 20 Power 11 | 1 . 1 . 3 2 1 3 Engine 5 | 1 . 1 . 1 . . 2 Core 6 | . . . . 2 2 1 1 Reactor . | . . . . . . . . Propulsion 29 | 2 1 4 1 3 10 1 7 Treads 28 | 2 1 4 1 3 9 1 7 Leg . | . . . . . . . . Wheel 1 | . . . . . 1 . . Hover . | . . . . . . . . Flight . | . . . . . . . . Utility 20 | 1 2 3 . 3 4 1 6 Device 10 | 1 1 . . 2 4 . 2 Storage 1 | . . 1 . . . . . Processor 2 | . 1 . . . . . 1 Hackware . | . . . . . . . . Protection 7 | . . 2 . 1 . 1 3 Artifact . | . . . . . . . . Weapon 33 | 2 6 4 . 9 7 1 4 Energy Gun 6 | 1 . . . 2 2 . 1 Energy Cannon . | . . . . . . . . Ballistic Gun 21 | 1 5 3 . 6 4 . 2 Ballistic Cannon 1 | . . . . . . . 1 Launcher 3 | . 1 1 . 1 . . . Special Weapon . | . . . . . . . . Impact Weapon 2 | . . . . . 1 1 . Slashing Weapon . | . . . . . . . . Piercing Weapon . | . . . . . . . . Special Melee Weapon . | . . . . . . . . Unidentified Prototypes 1 | . 1 . . . . . . Parts Lost 48 | . 2 1 . 6 12 . 27 Power 6 | . . . . 1 2 . 3 Propulsion 17 | . 1 1 . 1 5 . 9 Utility 8 | . 1 . . . . . 7 Weapon 17 | . . . . 4 5 . 8 Highest Loss Streak 13 | . 1 1 . 2 8 . 13 To Critical Strikes . | . . . . . . . . Average Backups 14 | 1 4 14 18 19 18 15 12 Power . | . . . 1 . . 1 . Propulsion 6 | . . 8 10 9 7 6 3 Utility 3 | . . . 3 4 6 5 6 Weapon 3 | 1 1 4 4 4 3 2 2 Tool/Special . | . . . . . . . . Unused Backups 20 | . 4 4 1 2 5 . 4 Power 4 | . . 1 . 1 . . 2 Propulsion 3 | . 1 . 1 1 . . . Utility 6 | . 1 . . . 3 . 2 Weapon 6 | . 2 3 . . 1 . . Tool/Special 1 | . . . . . 1 . . Average Slot Usage (%) 92 | . 72 98 90 99 94 98 78 Engine 6 | . 6 11 9 7 . . 5 Core 5 | . . . . 3 15 14 6 Treads 25 | . 28 24 27 27 25 28 22 Device 11 | . 5 11 9 15 11 14 9 Storage 8 | . . 10 9 9 8 6 7 Processor 1 | . 6 . . . . . 4 Protection 6 | . . 6 9 9 5 6 5 Energy Gun 2 | . . . . 3 3 14 6 Ballistic Gun 22 | . 24 32 27 23 19 12 3 Peak Build Rating 48 | 6 20 30 31 39 42 46 48 Average Rating 29 | 4 6 26 30 36 37 44 35 On Entrance 26 | . 5 20 30 31 38 40 46 Avg Prop Armor Cover (%) 29 | 28 29 . . . 14 . . Naked Turns . | . . . . . . . . Heaviest Build 92 | 8 8 67 67 71 74 77 92 Greatest Support 95 | 40 40 60 60 72 72 92 95 Greatest Overweight (x) 2 | . . 1 1 1 1 . 2 Average Overweight (x) . | . . . 1 . . . . Largest Inventory Capacity 20 | 5 5 20 20 20 20 20 20 Average Capacity 17 | 5 5 19 20 20 20 18 20 Most Carried 20 | 5 5 20 20 20 20 20 20 Average Carried 15 | 1 4 14 18 19 19 16 13 Final Capacity 20 | 5 5 20 20 20 20 20 20 Final Carried 20 | 5 3 20 20 20 20 20 3 Class Distribution -------------------- 56% | Scavenger-Tank 24% | Mutant 10% | Scavenger-Gunner 4% | Gunner 3% | Tank Dominant Class ---------------- Mutant | -10/Materials Scavenger-Tank | -9/Materials Scavenger-Tank | -8/Materials Scavenger-Tank | -8/Garrison Scavenger-Tank | -8/Materials Scavenger-Tank | -7/Factory Mutant | -7/Garrison Resources | -11 -10 -9 -8 -8 -8 -7 -7 ----------- Run | Yrd Mat Mat Mat Gar Mat Fac Gar Matter Collected 3504 | 279 220 740 . 783 1221 . 261 Remotely 263 | . . . . . 263 . . Salvage Created 4601 | 133 317 1607 . 968 1247 . 329 Parts 286 | 12 31 104 . 57 70 . 12 Haulers Intercepted 5 | . . 3 . . 2 . . Recyclers Shooed 7 | 2 3 1 . . 1 . . Parts Field Recycled . | . . . . . . . . Retrieved Matter . | . . . . . . . . Parts Self-Destructed . | . . . . . . . . Prevented . | . . . . . . . . Parts Restored . | . . . . . . . . Kills | -11 -10 -9 -8 -8 -8 -7 -7 ------- Run | Yrd Mat Mat Mat Gar Mat Fac Gar Combat Hostiles Destroyed 110 | . 11 39 . 26 25 . 9 Melee 3 | . . . . . 3 . . Guns 69 | . 11 30 . 12 15 . 1 Cannons 6 | . . . . . . . 6 AOE 31 | . . 9 . 14 6 . 2 Classes Destroyed 16 | 2 3 4 . 4 2 . 1 Worker 2 | . . . . . 2 . . Builder 5 | . 1 1 . . 3 . . Tunneler 4 | 4 . . . . . . . Hauler 5 | . . 3 . . 2 . . Recycler 5 | 1 . 3 . . 1 . . Operator 2 | . . 1 . . 1 . . Watcher 6 | . . 4 . . 2 . . Swarmer 27 | . 6 15 . 4 2 . . Grunt 47 | . 5 15 . 13 14 . . Brawler 4 | . . . . 1 1 . 2 Duelist 1 | . . . . . 1 . . Sentry 16 | . . 9 . . 5 . 2 Specialist 5 | . . . . 3 2 . . Hunter 5 | . . . . 3 . . 2 Programmer 4 | . . . . 2 . . 2 Heavy 1 | . . . . . . . 1 Best Kill Streak 13 | 2 3 10 . 13 11 . 3 Combat Bots Only 13 | . 3 9 . 13 6 . 3 Max Kills in Single Turn 3 | 1 2 3 . 3 2 . 1 Gunslinging 2 | . . 2 . . 1 . . Exploded 3 | . . 3 . 3 2 . 1 Melee 1 | . . . . . 1 . . Uniques/NPCs Destroyed . | . . . . . . . . Combat | -11 -10 -9 -8 -8 -8 -7 -7 -------- Run | Yrd Mat Mat Mat Gar Mat Fac Gar Hostile Shots Fired 898 | . 59 100 . 141 155 4 439 Missed 320 | . 15 35 . 46 55 1 168 Hits 578 | . 44 65 . 95 100 3 271 Melee 5 | . . . . . 5 . . Projectile 573 | . 44 65 . 95 95 3 271 AOE 1 | . . . . . 1 . . Critical Strikes 18 | . . . . 4 8 1 5 Damage Taken 8356 | . 426 681 . 1184 2201 45 3819 Core 1012 | . 24 118 . 103 320 . 447 Absorbed by Shields 328 | . . . . . . . 328 Ignored by Resistances 306 | . . 10 . 105 . . 191 Regen/Repaired (Parts) 381 | . . . . . . 381 . Core Remaining (%) 65 | 100 90 70 . . . . . Volleys Fired 320 | 19 41 69 . 75 57 . 59 Largest 4 | 2 2 3 . 3 4 . 4 Hottest 178 | 60 60 69 . 153 178 . 136 Shots Fired 726 | 38 74 195 . 171 163 . 85 Gun 669 | 38 73 189 . 156 157 . 56 Cannon 27 | . . . . . . . 27 Launcher 30 | . 1 6 . 15 6 . 2 Special . | . . . . . . . . Kinetic 572 | 19 66 189 . 104 126 . 68 Thermal 124 | 19 7 . . 52 31 . 15 Explosive 30 | . 1 6 . 15 6 . 2 Electromagnetic . | . . . . . . . . Robot Hit Streak 25 | 11 13 19 . 25 13 . 14 Robot Miss Streak 5 | 1 3 4 . 2 5 . 3 Penetration Max 1 | . . . . . 1 . . Secondary Targets 8 | . . 5 . . 3 . . Max Gunslinging Chain 2 | . . 2 . . 1 . . Shots Hit Robots 522 | 33 46 122 . 125 121 3 72 Core Hits 263 | 8 26 75 . 71 63 . 20 Critical Kills . | . . . . . . . . Critical Parts Destroyed 7 | . . 1 . 2 3 . 1 Critical Strikes 13 | . . 1 . 5 4 . 3 Burn 3 | . . . . 3 . . . Destroy 4 | . . 1 . 2 1 . . Blast 2 | . . . . . . . 2 Smash 3 | . . . . . 2 . 1 Sever 1 | . . . . . 1 . . Melee Attacks 27 | . . . . . 16 6 5 Impact 18 | . . . . . 7 6 5 Slashing 9 | . . . . . 9 . . Piercing . | . . . . . . . . Sneak Attacks 3 | . . . . . 3 . . Combat Hostiles . | . . . . . . . . Follow-up Attacks 1 | . . . . . 1 . . Damage Inflicted 12487 | 319 432 2469 . 3555 3107 154 2451 Guns 6879 | 319 423 1840 . 1713 1752 . 832 Cannons 1374 | . . . . . . . 1374 Explosions 3373 | . . 604 . 1842 785 . 142 Melee 772 | . . . . . 521 154 97 Ramming 89 | . 9 25 . . 49 . 6 Kinetic 6700 | 138 379 1840 . 1029 1358 . 1956 Thermal 1624 | 181 44 . . 684 465 . 250 Explosive 3302 | . . 604 . 1842 714 . 142 Electromagnetic . | . . . . . . . . Impact 441 | . . . . . 190 154 97 Slashing 331 | . . . . . 331 . . Piercing . | . . . . . . . . Highest Corruption 35 | . . . . 18 35 1 19 Average Corruption 17 | . . . . 18 26 1 3 Corruption Purged . | . . . . . . . . Corruption Blocked . | . . . . . . . . Effects 117 | . . . . 33 72 1 11 Message Errors 25 | . . . . 8 11 . 6 Matter Fused 25 | . . . . 9 15 . 1 Heat Flow Errors 10 | . . . . 4 6 . . Energy Discharges 9 | . . . . 3 5 . 1 Parts Rejected 4 | . . . . . 3 . 1 Parts Fused 1 | . . . . . 1 . . Data Loss (minor) 8 | . . . . 2 5 1 . Data Loss (major) 4 | . . . . 1 3 . . Misfires 7 | . . . . . 6 . 1 Alerts 2 | . . . . 1 1 . . Misdirections 4 | . . . . . 4 . . Weapon Failures 18 | . . . . 5 12 . 1 Overload Shots . | . . . . . . . . Overflow Damage 468 | . . 4 . 73 272 15 104 Projectiles 45 | . . . . . . . 45 Explosions 195 | . . 4 . 73 108 . 10 Melee 228 | . . . . . 164 15 49 Knockbacks 3 | . . 1 . . . . 2 Impact 1 | . . 1 . . . . . Kinetic 2 | . . . . . . . 2 Secondary . | . . . . . . . . Self-Inflicted Damage 256 | . . . . . 185 . 71 Shots 4 | . . . . . 2 . 2 Rammed 11 | . 3 2 . . 5 . 1 Targets Rammed 12 | . 3 2 . . 6 . 1 Kicked . | . . . . . . . . Crushed 1 | . . . . . 1 . . Highest Temperature 476 | 40 32 78 . 255 476 . 360 Average Temperature 79 | 19 12 20 . 66 118 . 129 Received Heat Transfer 2059 | . 126 216 . 423 795 45 454 Effects 16 | . . . . . 11 . 5 Shutdowns 5 | . . . . . 4 . 1 Energy Bleed 2 | . . . . . 1 . 1 Interference 4 | . . . . . 1 . 3 Matter Decay 1 | . . . . . 1 . . Damage (major) 4 | . . . . . 4 . . Siege Activations . | . . . . . . . . Martial Activations . | . . . . . . . . Shielding Activations . | . . . . . . . . Robots Disrupted . | . . . . . . . . Combat Hostiles . | . . . . . . . . Robots Corrupted 1 | . . . . . 1 . . Combat Hostiles 1 | . . . . . 1 . . Parts Fried 2 | . . . . . 2 . . Impact Corruptions 6 | . . . . . 4 1 1 Robots Melted 2 | . . . . 2 . . . Combat Hostiles . | . . . . . . . . Parts Melted 3 | . . . . . 3 . . Heat Transferred 3821 | 425 100 . . 1887 975 . 434 Parts Sabotaged . | . . . . . . . . Parts Stolen . | . . . . . . . . Parts Stripped . | . . . . . . . . Power Chain Reactions . | . . . . . . . . Alert | -11 -10 -9 -8 -8 -8 -7 -7 ------- Run | Yrd Mat Mat Mat Gar Mat Fac Gar Maximum Alert Level 3 | . 1 2 1 3 2 1 1 Low Security (%) 41 | 100 90 38 85 18 . 35 89 Level 1 22 | . 9 13 14 1 65 64 10 Level 2 35 | . . 48 . 78 34 . . Level 3 . | . . . . 1 . . . Level 4 . | . . . . . . . . Level 5 . | . . . . . . . . High Security . | . . . . . . . . Max Security . | . . . . . . . . Peak Influence 780 | 5 220 684 209 780 639 275 247 Initial 380 | . . 61 209 96 380 275 131 Average 313 | . 121 318 179 492 410 218 156 Influence Increases 3497 | 25 422 1121 . 744 819 33 333 Destroy 0b10 Robot/C 2200 | . 220 780 . 520 500 . 180 Destroy 0b10 Robot/NC 160 | 25 5 60 . 15 55 . . Destroy Leader 372 | . 40 164 . 30 128 . 10 Successful Hack 2 | . . 2 . . . . . Disable Machine 105 | . . 30 . . 30 . 45 Anti-Garrison Action 150 | . . . . 100 . . 50 Destroy Structure 208 | . 7 40 . 49 61 3 48 Partial Spotted 15 | . 15 . . . . . . Lose Combat Pursuer 285 | . 135 45 . 30 45 30 . Influence Decreases 3343 | 25 276 769 349 113 994 450 367 Entered New Map 1214 | . . 85 289 53 400 330 57 Time Decay 1459 | 25 256 524 60 . 474 120 . Lost Part 480 | . 20 10 . 60 120 . 270 Lost Ally 40 | . . . . . . . 40 Purge Threat 150 | . . 150 . . . . . Squads Dispatched 12 | . 3 3 . . 5 1 . Investigation 4 | . 1 2 . . . 1 . Extermination . | . . . . . . . . Reinforcement 8 | . 2 1 . . 5 . . Assault . | . . . . . . . . Garrison . | . . . . . . . . Intercept . | . . . . . . . . Searches Triggered . | . . . . . . . . Construction Impeded 1 | . . . . . 1 . . Haulers Reinforced . | . . . . . . . . Active Scanning Responses . | . . . . . . . . Cargo Convoy Interrupts . | . . . . . . . . Stealth | -11 -10 -9 -8 -8 -8 -7 -7 --------- Run | Yrd Mat Mat Mat Gar Mat Fac Gar Distress Signals 11 | . 4 2 . . 5 . . Communications Jammed . | . . . . . . . . Distress Signals . | . . . . . . . . Times Spotted 181 | . 28 51 . 32 51 3 16 Peak Tracking Total 8 | . 6 6 . 7 8 2 3 Tactical Retreats 15 | . 7 3 . 1 3 1 . Traps | -11 -10 -9 -8 -8 -8 -7 -7 ------- Run | Yrd Mat Mat Mat Gar Mat Fac Gar Traps Triggered 13 | . 1 1 . 2 4 . 5 Indirectly . | . . . . . . . . Trap Hack Attempts . | . . . . . . . . Triggered . | . . . . . . . . Disarmed . | . . . . . . . . Reprogrammed . | . . . . . . . . Reused . | . . . . . . . . Traps Extracted . | . . . . . . . . Installed . | . . . . . . . . Triggered . | . . . . . . . . Machines | -11 -10 -9 -8 -8 -8 -7 -7 ---------- Run | Yrd Mat Mat Mat Gar Mat Fac Gar Machines Disabled 10 | . . 2 . . 2 . 6 Max in Single Turn 2 | . . 1 . . 2 . 2 Phase Generator 2 | . . . . 1 . . 1 Machines Repaired . | . . . . . . . . Machines Dismantled . | . . . . . . . . Machines Sabotaged . | . . . . . . . . Overloaded Fab Kills . | . . . . . . . . Hacking | -11 -10 -9 -8 -8 -8 -7 -7 --------- Run | Yrd Mat Mat Mat Gar Mat Fac Gar Machines Accessed 21 | . . 7 1 3 6 4 . Terminals 16 | . . 6 . 3 5 2 . Fabricators . | . . . . . . . . Repair Stations 1 | . . . . . . 1 . Recycling Units . | . . . . . . . . Scanalyzers 2 | . . 1 . . 1 . . Garrison Access 2 | . . . 1 . . 1 . Total Hacks 38 | . . 16 1 4 11 6 . Successful 9 | . . 3 1 . 1 4 . Failed 29 | . . 13 . 4 10 2 . Catastrophic 14 | . . 5 . 2 6 1 . Database Lockouts . | . . . . . . . . Manual 23 | . 1 10 . 3 9 . . Terminals 31 | . . 14 . 4 10 3 . Fabricators . | . . . . . . . . Repair Stations 2 | . . . . . . 2 . Recycling Units . | . . . . . . . . Scanalyzers 3 | . . 2 . . 1 . . Garrison Access 2 | . . . 1 . . 1 . Terminal Hacks 2 | . . 1 . . . 1 . Branch Access Points 1 | . . . . . . 1 . Unreport Threat 1 | . . 1 . . . . . Fabricator Hacks . | . . . . . . . . Repair Station Hacks 2 | . . . . . . 2 . Scan Component 1 | . . . . . . 1 . Repair 1 | . . . . . . 1 . Recycling Unit Hacks . | . . . . . . . . Scanalyzer 3 | . . 2 . . 1 . . Retrieve Study 3 | . . 2 . . 1 . . Garrison Access Hacks 2 | . . . 1 . . 1 . Unlock Access 2 | . . . 1 . . 1 . Unauthorized Hacks . | . . . . . . . . Terminals . | . . . . . . . . Fabricators . | . . . . . . . . Repair Stations . | . . . . . . . . Recycling Units . | . . . . . . . . Scanalyzers . | . . . . . . . . Garrison Access . | . . . . . . . . Data Cores Recovered 1 | . . 1 . . . . . Used . | . . . . . . . . Hacking Detections 19 | . . 7 1 3 5 3 . Full Trace Events 2 | . . 1 . . . 1 . Feedback Events 1 | . . . . . . 1 . Corruption 1 | . . . . . . 1 . Feedback Blocked . | . . . . . . . . Robot Schematics Acquired . | . . . . . . . . Robots Built . | . . . . . . . . Authchips . | . . . . . . . . Time . | . . . . . . . . Total Robot Build Rating . | . . . . . . . . Part Schematics Acquired . | . . . . . . . . Parts Built . | . . . . . . . . Authchips . | . . . . . . . . Time . | . . . . . . . . Total Part Build Rating . | . . . . . . . . Part Studies Acquired 3 | . . 2 . . 1 . . Parts Repaired 1 | . . . . . . 1 . Time 26 | . . . . . . 26 . Parts Recycled . | . . . . . . . . Recycled Matter . | . . . . . . . . Retrieved Matter . | . . . . . . . . Retrieved Components . | . . . . . . . . Parts Scanalyzed . | . . . . . . . . Part Schematics Acquired . | . . . . . . . . Parts Damaged . | . . . . . . . . Bothacking | -11 -10 -9 -8 -8 -8 -7 -7 ------------ Run | Yrd Mat Mat Mat Gar Mat Fac Gar Used RIF Installer 2 | . . . . 2 . . . Patrol Navigation 1 | . . . . 1 . . . Robots Hacked . | . . . . . . . . Non-combat . | . . . . . . . . Combat . | . . . . . . . . Robot Hacks Applied . | . . . . . . . . Relay Couplers Released 4 | . . . . . . . 4 Programmers 4 | . . . . . . . 4 Fabnet Peak Effective % . | . . . . . . . . Robots Rewired . | . . . . . . . . Allies Hacked . | . . . . . . . . Hacks Repelled . | . . . . . . . . Allies | -11 -10 -9 -8 -8 -8 -7 -7 -------- Run | Yrd Mat Mat Mat Gar Mat Fac Gar Total Allies 2 | . . . . . . . 2 Largest Group 2 | . . . . . . . 2 Highest-Rated Group 42 | . . . . . . . 42 Highest-Rated Ally 21 | . . . . . . . 21 Total Orders . | . . . . . . . . Ally Attacks 19 | . . . . . . . 19 Total Damage 312 | . . . . . . . 312 Kills . | . . . . . . . . Allies Corrupted . | . . . . . . . . Allies Melted . | . . . . . . . . X0-1V1 Amusement Gains 119 | . 3 5 . 30 . . 81 Average Entertainment 30 | . 3 8 8 28 38 19 72 Good Acts 23 | . . 3 . 5 11 1 3 Bad Acts 30 | . . 8 . 8 6 . 8 Intel | -11 -10 -9 -8 -8 -8 -7 -7 ------- Run | Yrd Mat Mat Mat Gar Mat Fac Gar Active Infowar (turns) 380 | 140 229 . . . 11 . . Structural 11 | . . . . . 11 . . Seismic 369 | 140 229 . . . . . . Robot Analysis Total . | . . . . . . . . Derelict Logs Recovered . | . . . . . . . . Drone Launches . | . . . . . . . . Drone Recoveries . | . . . . . . . . Exploration | -11 -10 -9 -8 -8 -8 -7 -7 ------------- Run | Yrd Mat Mat Mat Gar Mat Fac Gar Turns Passed 5855 | 226 635 1510 137 1217 1202 248 680 Spaces Moved 2786 | 99 599 616 66 532 495 119 260 Core 553 | 9 544 . . . . . . Treads 2226 | 90 55 616 66 532 493 119 255 Legs . | . . . . . . . . Wheels 7 | . . . . . 2 . 5 Hover . | . . . . . . . . Flight . | . . . . . . . . Fastest Speed 50 | 50 50 160 200 160 115 160 115 Average Speed 147 | 150 60 192 200 160 164 160 166 Slowest Speed 240 | 160 160 240 200 200 200 160 240 Overloaded Moves . | . . . . . . . . Propulsion Burnouts . | . . . . . . . . Robots Hopped . | . . . . . . . . Potential Cave-ins . | . . . . . . . . Cave-ins Triggered . | . . . . . . . . Exploration Rate (%) 40 | 6 92 61 7 75 46 5 32 Regions Visited 7 Branch Regions . Pre-discovered Areas . | . . . . . . . . Known Exits Taken 2 | . . . 1 . . 1 . Unknown Exits Taken 4 | 1 1 1 . . 1 . . Scrap Searched . | . . . . . . . . Spaces Dug 3 | . . . . . . 3 . Terrain Destroyed 209 | . 11 44 . 31 63 3 57 Melee 3 | . . . . . . 3 . Projectile 3 | . . . . . . . 3 AOE 203 | . 11 44 . 31 63 . 54 Terrain Rammed . | . . . . . . . . Walls Destroyed . | . . . . . . . . Machines Disabled . | . . . . . . . . Actions | -11 -10 -9 -8 -8 -8 -7 -7 --------- Run | Yrd Mat Mat Mat Gar Mat Fac Gar Total 3862 | 137 809 792 71 751 729 165 408 Wait 412 | 8 131 39 1 101 87 18 27 Move 2780 | 98 598 615 66 530 494 119 260 Hop . | . . . . . . . . Pick Up 95 | 5 4 31 2 11 20 14 8 Fast Attach 34 | 5 3 6 . 5 7 2 6 Attach 51 | 1 8 3 1 6 11 2 19 Detach 10 | 1 6 . . . 2 . 1 Swap 58 | . 7 12 . 13 18 2 6 Drop 55 | . 8 15 1 10 13 2 6 Fire 320 | 19 41 69 . 75 57 . 59 Melee 24 | . . . . . 13 6 5 Ram 1 | . . . . . 1 . . Kick . | . . . . . . . . Crush 12 | . 3 2 . . 6 . 1 Escape Stasis 10 | . . . . . . . 10 Rewire . | . . . . . . . . Trap . | . . . . . . . . Miscellaneous . | . . . . . . . . Route ------- -11/Scrapyard -10/Materials (discovered 5 exits: *Mat x3 / [*Min] / [*Sub]) -9/Materials (discovered 3 exits: *Mat x3) -8/Materials -8/Garrison (discovered 2 exits: *Mat x2) -8/Materials (discovered 2 exits: *Fac x2) -7/Factory (discovered 5 exits: Sto x2 / Low x2 / Gar) -7/Garrison History --------- Turn | Location | Event 29 | -11/Scrapyard | Discovered new exit (range 16) 227 | -11/Scrapyard | Entered Materials 315 | -10/Materials | Build established: Mutant 382 | -10/Materials | Discovered new exit (range 8) 547 | -10/Materials | Discovered new exit (range 5) 576 | -10/Materials | Discovered new exit (range 10) 641 | -10/Materials | Discovered new exit (range 14) 730 | -10/Materials | Discovered new exit (range 8) 837 | -10/Materials | Prayed at D.C.S.S. Altar Unit 862 | -10/Materials | Entered another Materials area 862 | -9/Materials | Evolved 2 slots: Propulsion x1, Weapon x1 1330 | -9/Materials | Discovered new exit (range 9) 1343 | -9/Materials | X0-1V1 sent hostile S-10 Pest (x5) 1369 | -9/Materials | Build established: Scavenger-Gunner 1438 | -9/Materials | X0-1V1 sent you into danger 1481 | -9/Materials | X0-1V1 mutated your Propulsion slot to Utility slot 1483 | -9/Materials | Destroyed 8 combat bots 1745 | -9/Materials | Discovered new exit (range 5) 1784 | -9/Materials | Build established: Scavenger-Tank 1968 | -9/Materials | X0-1V1 sent hostile G-34 Mercenary (x5) 1999 | -9/Materials | X0-1V1 foreshadows a heat wave 2042 | -9/Materials | Destroyed 9 combat bots 2054 | -9/Materials | Discovered new exit (range 14) 2231 | -9/Materials | Ambient heat levels rising (+10) 2372 | -9/Materials | Entered another Materials area 2372 | -8/Materials | Evolved 2 slots: Propulsion x1, Utility x1 2509 | -8/Materials | Identified exit to Garrison 2509 | -8/Materials | Entered Garrison 2509 | -8/Garrison | Mass support permanently improved by X0-1V1 (+12; -260 max core) 2545 | -8/Garrison | Triggered checkpoint 2701 | -8/Garrison | Triggered checkpoint 2736 | -8/Garrison | Triggered checkpoint 2738 | -8/Garrison | Triggered checkpoint 2769 | -8/Garrison | X0-1V1 destroyed Phase Generator 2769 | -8/Garrison | Phase Generator disabled 2778 | -8/Garrison | Destroyed 13 combat bots 2850 | -8/Garrison | Triggered checkpoint 2934 | -8/Garrison | Installed Relay Interface Framework 2967 | -8/Garrison | X0-1V1 activates XOMVISION 2982 | -8/Garrison | X0-1V1 sent you into danger 2985 | -8/Garrison | Triggered checkpoint 2996 | -8/Garrison | Discovered new exit (range 11) 3018 | -8/Garrison | System corruption reached 10% 3433 | -8/Garrison | X0-1V1 sent hostile X-57 Shotgunner (x3) 3514 | -8/Garrison | X0-1V1 mutated your Utility slot to Power slot 3649 | -8/Garrison | Discovered new exit (range 13) 3665 | -8/Garrison | Expanded RIF knowledge: Patrol Navigation 3726 | -8/Garrison | Entered Materials 4164 | -8/Materials | Core integrity fell below 50% 4367 | -8/Materials | Weapon slot count permanently improved by X0-1V1 (+1) 4430 | -8/Materials | System corruption reached 30% 4468 | -8/Materials | Discovered new exit (range 9) 4472 | -8/Materials | Core integrity fell below 20% 4479 | -8/Materials | X0-1V1 rescued you from certain death 4509 | -8/Materials | Lost 8 parts (2p2n4w) 4920 | -8/Materials | Discovered new exit (range 6) 4928 | -8/Materials | Entered Factory 4928 | -7/Factory | Evolved 2 slots: Propulsion x1, Utility x1 4971 | -7/Factory | Repaired Hcp. Storage Unit 5078 | -7/Factory | Identified exit to Storage 5078 | -7/Factory | Identified exit to Lower Caves 5176 | -7/Factory | Identified exit to Garrison 5176 | -7/Factory | Entered Garrison 5390 | -7/Garrison | Heavy support dispatched to Storage 5417 | -7/Garrison | X0-1V1 upgraded hostiles (x1) 5428 | -7/Garrison | X0-1V1 vaporized surrounding terrain (radius 20) 5455 | -7/Garrison | Core integrity fell below 50% 5471 | -7/Garrison | Triggered checkpoint 5484 | -7/Garrison | Lost 13 parts (5n3u5w) 5644 | -7/Garrison | Spotted B-75 Beast 5655 | -7/Garrison | Phase Generator disabled 5688 | -7/Garrison | Lost 3 parts (1n2w) 5719 | -7/Garrison | Spotted B-75 Beast 5728 | -7/Garrison | X0-1V1 sent allied H-55 Commando (x2) 5750 | -7/Garrison | X0-1V1 whisked you away to safety 5768 | -7/Garrison | Triggered checkpoint 5778 | -7/Garrison | Lost 8 parts (2p2n3u1w) 5787 | -7/Garrison | X0-1V1 sent hostile H-55 Commando (x2) 5794 | -7/Garrison | System corruption reached 10% 5824 | -7/Garrison | Core integrity fell below 20% 5856 | -7/Garrison | Destroyed by Y-54 Guardian with Gatling Laser Last Messages --------------- 05804_ Acquired Gauss Rifle. 05806_ Slug penetrates P-70 Sage. 05807_ The unstable cave ceiling collapses. 05808_ Slug penetrates P-70 Sage. 05812_ Destroyed Imp. Heat Sink. 05815_ Lgt. Nuclear Core destroyed. 05820_ Slug penetrates P-70 Sage. 05820_ Destroyed Hpw. Shock Rifle. 05824_ The unstable cave ceiling collapses. 05826_ P-70 Sage destroyed. 05828_ Slug penetrates Y-54 Guardian. 05831_ System corrupted: Arm. Huge Wheel rejected. 05831_ Reactive Plating destroyed. 05832_ Acquired Arm. Huge Wheel. 05834_ Slug penetrates Y-54 Guardian. 05842_ The unstable cave ceiling collapses. 05846_ A7AKH|TXDA=YM#ZI GZE2ZZ=MS& 05846_ Acquired 56 matter. 05856_ X0-1V1 cackles wildly! Map ----- +----------------------------------------------------+ | ???????????????????????????????? ???????? | | ????????????????????????????????? ????????? | | ????????????????????????????????? ????????? | | ?????????????????????????????????# #????????? | | ?????????????????????????????????# #????????? | | ???????????????????????????????? #???????? | | ?????????????????????????????? #???????? | | ?????????????????????????????##### #???????? | | ?????????????????????????????????# #???????? | | ?????????????????????????????????# #???????? | | ?????????????????##########??????# #???????? | | ???????????????### ???????? | | ???????????????#"# ########??????# #???????? | | ???????????????#" #?????????????? #???????? | | ???????????????#" #????###??????? ???????? | | ???????????????#" ##### #??????? ???????? | | ???????????????#"# ### ##?????? #???????? | | ???????????????### ##!# # # #???? ????????? | | ?????????????????# #???? ????????? | | ?????????????????#### =#### #???? ????????? | | ????????????????????#=]%#???????????????????? | | ????????????????????## ##???????????????????? | | ????????????????????# =#????????????????????? | | ????????????????????##!#????????????????????? | | ???????????#" ######Y##### #??????????????? | | ???????????#" @Y!!| ???????? | | ???????????#"# ############??????????????? | | ?????????????#??????????????????????????????? | | ????????????????????????????????????????????? | | ????????????????????????????????????????????? | | ????????????????????????????????????????????? | | ????????????????????????????????????????????? | | ????????????????????????????????????????????? | | ????????????????????????????????????????????? | | ????????????????????????????????????????????? | | ????????????????????????????????????????????? | | ????????????????????????????????????????????? | | ????????????????????????????????????????????? | | ????????????????????????????????????????????? | | ????????????????????????????????????????????? | | ????????????????????????????????????????????? | | ????????????????????????????????????????????? | | ????????????????????????????????????????????? | | ????????????????????????????????????????????? | | ????????????????????????????????????????????? | | ????????????????????????????????????????????? | | ????????????????????????????????????????????? | | ????????????????????????????????????????????? | | ????????????????????????????????????????????? | | ????????????????????????????????????????????? | +----------------------------------------------------+ Best States ------------- Heat Dissipation 115 Energy Generation 32 Energy Capacity 1750 Matter Stores 592 Matter Capacity 900 Sight Range 22 Terrain Scan Density 85 Armor Coverage 225 Resistance: KI 20 Evasion (%) 50 Core Analysis 6 Recoil Reduction 4 Item Schematics ----------------- None Robot Schematics ------------------ None Fabricated ------------ Nothing Repaired ---------- Hcp. Storage Unit | 23% | -7/Factory Studied --------- Lgt. Treads | -9/Materials | Hacked Hvy. Assault Rifle | -9/Materials | Hacked Missile Launcher | -8/Materials | Hacked Alien Tech Used ----------------- None Achievements -------------- None Challenges ------------ None Game ------ Seed ScimitarBladeExoskeleton Manual? 0 Play Time 00:55:44 Cumulative 525.7 hours Start 2026.08.17 @ 15:31:19 End 2026.08.17 @ 16:26:56 Sessions 1 Manual Loads 0 Difficulty Rogue Special Mode None Game No. 220 Rogue 220 Adventurer 0 Explorer 0 Win Type - Total 41 Types 4/9/15/0/0/1/9/0/1/2 Lore% 85 Gallery% 73 Achievement% 70 Wizard Run 0 Options --------- Layout 1 ASCII 0 Keyboard 0 Movement Arrows Keybinds 0 Fullscreen 2 Font 24/Terminus Map View 50x35 Zoom Use 0% Tactical HUD 1 Map Filters NONE Filters NONE Steam 1 RUN: 37f75041-1beb-42b1-86d2-6943b491e9b8